bitfinex/quotes_ETHUSD_20250223
["timestamp","ask_amount","ask_price","bid_price","bid_amount"]
[1740269358970,4.44522,2764.4,2763.7,3.76883]
[1740269359369,0.8277,2764.4,2763.7,3.76883]
[1740269359613,4.44519,2764.4,2763.7,3.76883]
[1740269359806,0.8277,2764.4,2763.7,0.1505]
[1740269359973,3.61762,2764.3,2763.7,0.1505]
[1740269360319,3.61776,2764.2,2763.5,9.15137]
[1740269363232,3.61803,2764.0,2763.5,5.5328]
[1740269363369,4.44586,2763.9,2763.5,5.3823]
[1740269363573,3.6184,2763.7,2763.5,5.3823]
[1740269363803,3.61846,2763.6,2763.5,5.3823]
[1740269364122,4.44629,2763.5,2763.4,0.261]
[1740269365885,3.61886,2763.3,2763.2,5.3823]
[1740269366077,3.61873,2763.4,2762.9,5.6433]
[1740269366277,3.61873,2763.4,2763.0,3.0]
[1740269366479,3.6189,2763.3,2762.9,5.6433]
[1740269366904,3.61897,2763.3,2762.9,5.6433]
[1740269367087,3.61906,2763.2,2762.8,0.1505]
[1740269367289,3.61897,2763.3,2762.7,3.0]
[1740269367597,3.61897,2763.3,2762.7,3.261]
[1740269367806,3.61905,2763.2,2762.7,3.261]
[1740269368321,3.61905,2763.2,2762.7,3.0]
[1740269368526,3.61905,2763.2,2762.7,3.261]
[1740269368843,3.61897,2763.3,2762.7,3.261]
[1740269369006,7.23788,2763.3,2762.7,3.0]
[1740269369407,3.61894,2763.3,2762.7,3.0]
[1740269369640,3.61875,2763.4,2762.7,6.61956]
[1740269370245,3.61875,2763.4,2762.7,8.29446175]
[1740269371143,3.6189,2763.3,2762.7,4.67490175]
[1740269376235,3.6189,2763.3,2762.7,3.0]
[1740269376474,7.23784,2763.3,2762.7,3.0]
[1740269376763,7.23786,2763.3,2762.7,3.0]
[1740269377282,3.6189,2763.3,2762.7,3.0]
[1740269377487,7.23785,2763.3,2762.7,3.0]
[1740269377781,7.76243802,2763.0,2762.6,5.3823]
[1740269378081,4.39265,2763.0,2762.6,5.3823]
[1740269378578,0.7733,2763.0,2762.6,5.3823]
[1740269378747,3.61938,2762.9,2762.6,5.3823]
[1740269378948,3.61955,2762.8,2762.6,5.3823]
[1740269380970,3.61921,2763.1,2762.7,0.1505]
[1740269382055,3.61932,2763.0,2762.7,0.1505]
[1740269382952,8.56859302,2763.3,2762.7,0.1505]
[1740269383158,3.61919,2763.1,2762.7,0.1505]
[1740269383466,0.8568593,2763.2,2762.7,0.1505]
[1740269383665,3.61945,2762.9,2762.7,0.1505]
[1740269383877,7.23894,2762.9,2762.7,0.1505]
[1740269384059,7.23894,2762.9,2762.6,5.3823]
[1740269384576,3.61945,2762.9,2762.6,5.3823]
[1740269385533,3.61901,2763.2,2762.6,5.3823]
[1740269385733,7.23808,2763.2,2762.6,5.3823]
[1740269386373,3.61914,2763.1,2762.6,5.3823]
[1740269386566,3.61934,2763.0,2762.6,5.3823]
[1740269386771,3.61914,2763.1,2762.6,5.3823]
[1740269387275,3.61936,2763.0,2762.6,5.3823]
[1740269388871,3.61944,2762.9,2762.6,5.3823]
[1740269389062,3.61944,2762.9,2762.8,0.71110112]
[1740269389573,4.34332,2762.9,2762.8,0.71110112]
[1740269389756,3.61964,2762.7,2762.6,5.3823]
[1740269389959,3.61953,2762.8,2762.2,0.26]
[1740269389960,3.62017,2762.3,2762.2,0.26]
[1740269390159,3.62043,2762.1,2762.0,5.3823]
[1740269394377,1.0610518,2762.1,2761.6,2.17731468]
[1740269394680,3.62045,2762.1,2761.6,2.17731468]
[1740269394978,3.62056,2762.0,2761.6,2.17731468]
[1740269397576,3.62095,2761.7,2761.6,2.17731468]
[1740269397778,3.62108,2761.6,2761.5,0.27075184]
[1740269397947,4.7643818,2761.6,2761.5,0.27075184]
[1740269398984,3.62122,2761.5,2761.4,0.72047122]
[1740269399462,3.62156,2761.3,2760.9,0.7005]
[1740269399663,1.1433018,2761.6,2760.9,0.7005]
[1740269399664,3.36978802,2761.4,2760.9,0.7005]
[1740269399857,0.8212,2761.1,2760.9,0.55]
[1740269400245,4.44268,2761.3,2760.9,0.55]
[1740269400577,4.44268,2761.3,2761.0,0.71156104]
[1740269400776,0.8212,2761.3,2761.0,0.71156104]
[1740269401283,4.4428,2761.3,2761.0,0.71156104]
[1740269401479,0.8212,2761.3,2761.0,0.71156104]
[1740269401774,4.44268,2761.3,2761.0,0.71156104]
[1740269401978,0.8212,2761.3,2761.0,0.71156104]
[1740269402188,4.44268,2761.3,2761.0,0.71156104]
[1740269403301,0.8212,2761.6,2761.0,1.12682073]
[1740269403490,0.8212,2761.6,2761.0,0.71156104]
[1740269403788,3.62156,2761.3,2761.0,0.71156104]
[1740269404003,3.88958377,2762.0,2760.9,0.55]
[1740269404004,3.62187,2761.0,2760.9,0.55]
[1740269404157,4.7653308,2761.0,2760.9,0.55]
[1740269404355,0.8212,2761.1,2760.9,0.55]
[1740269404558,3.62156,2761.3,2760.9,0.55]
[1740269404763,4.13198802,2761.4,2760.9,4.17198]
[1740269405058,3.62148,2761.3,2760.9,0.55]
[1740269406175,3.62164,2761.2,2760.9,0.55]
[1740269406465,7.75339802,2761.4,2760.9,0.55]
[1740269406683,3.62158,2761.3,2760.9,0.55]
[1740269408083,5.26944382,2761.4,2760.9,0.55]
[1740269408295,3.36978802,2761.4,2760.9,4.32249]
[1740269408501,0.7622,2761.6,2761.0,3.62175]
[1740269408802,0.7622,2761.9,2761.2,0.1505]
[1740269409008,4.3829,2761.9,2761.2,3.77211]
[1740269409208,4.3829,2761.9,2761.2,0.1505]
[1740269409499,4.3829,2761.9,2761.2,3.7721]
[1740269409728,4.3829,2761.9,2761.2,0.1505]
[1740269409878,0.7622,2761.9,2761.4,3.62124]
[1740269410082,3.36978802,2762.0,2761.5,0.261]
[1740269410494,3.36978802,2762.0,2761.6,0.1505]
[1740269412000,6.99036802,2762.0,2761.6,0.1505]
[1740269413732,6.99036802,2762.0,2761.5,0.261]
[1740269414029,3.62097,2761.7,2761.5,0.261]
[1740269414238,6.99075802,2761.7,2761.5,0.261]
[1740269414512,3.62108,2761.6,2761.5,0.261]
[1740269414821,3.62108,2761.6,2761.3,5.3823]
[1740269415119,6.99075802,2761.7,2761.3,5.3823]
[1740269415719,3.36978802,2761.7,2761.3,5.3823]
[1740269415931,3.36978802,2761.7,2761.3,9.00377]
[1740269416487,3.36978802,2761.7,2761.3,5.3823]
[1740269417427,0.7616,2761.6,2761.3,5.3823]
[1740269419893,0.7616,2761.6,2761.1,0.261]
[1740269421328,0.7616,2761.6,2761.1,0.53201825]
[1740269423233,3.62123,2761.5,2761.1,0.53201825]
[1740269423635,0.7616,2761.6,2761.1,0.53201825]
[1740269423939,3.6215,2761.3,2761.1,0.27101825]
[1740269424102,4.38321,2761.2,2761.1,0.27101825]
[1740269425143,4.38321,2761.2,2761.1,0.27101825]
[1740269425499,0.7616,2761.2,2760.9,0.55]
[1740269425737,7.24306,2761.3,2760.9,0.55]
[1740269425926,3.6215,2761.3,2760.9,0.55]
[1740269426127,4.3967888,2761.3,2760.9,0.55]
[1740269426835,8.0183388,2761.3,2760.9,0.55]
[1740269427037,4.3967888,2761.3,2760.9,0.55]
[1740269427233,4.13138802,2761.4,2760.9,0.55]
[1740269427411,4.13138802,2761.4,2760.9,0.7005]
[1740269427614,7.75283802,2761.4,2760.9,0.7005]
[1740269429247,7.75283802,2761.4,2760.9,0.97679502]
[1740269430572,6.99091802,2761.6,2760.9,4.59878502]
[1740269430978,3.36978802,2761.6,2760.9,7.19673582]
[1740269431277,3.62076,2761.9,2761.2,3.62157]
[1740269431577,3.6207,2761.9,2761.3,0.4115]
[1740269431779,3.62067,2762.0,2761.3,4.03297]
[1740269431985,3.62067,2762.0,2761.4,3.62134]
[1740269432196,0.792,2762.1,2761.5,3.62115]
[1740269432495,0.07032317,2762.0,2761.7,3.62093]
[1740269432692,0.07032317,2762.0,2761.8,3.62082]
[1740269432898,6.98976802,2762.5,2761.8,3.62081]
[1740269433096,1.1401628,2762.4,2761.8,3.62081]
[1740269433300,3.36978802,2762.5,2762.0,0.1505]
[1740269435179,0.07089091,2762.4,2762.0,0.1505]
[1740269435378,0.07089091,2762.4,2762.0,3.77104]
[1740269436497,3.61965,2762.7,2762.0,3.77104]
[1740269436700,0.07079901,2762.3,2762.0,0.1505]
[1740269436872,6.98929802,2762.8,2762.1,3.88136]
[1740269437072,6.98929802,2762.8,2762.2,3.62028]
[1740269438077,4.41134,2763.0,2762.1,3.88136]
[1740269438078,0.792,2763.0,2762.3,0.1505]
[1740269438284,0.792,2763.0,2762.4,3.61997]
[1740269438705,0.06362015,2762.9,2762.4,5.3823]
[1740269438901,0.06362015,2762.9,2762.5,3.61989]
[1740269439072,0.06362015,2762.9,2762.4,5.93558]
[1740269439272,3.61933,2763.0,2762.4,5.3823]
[1740269439472,0.06367977,2762.8,2762.4,9.00231]
[1740269439672,3.61933,2763.0,2762.4,9.00231]
[1740269439979,0.0635879,2762.7,2762.4,9.00231]
[1740269440183,3.61933,2763.0,2762.4,9.00231]
[1740269440380,0.06349601,2762.6,2762.4,9.00231]
[1740269440605,3.61933,2763.0,2762.4,10.279618]
[1740269440810,0.06340413,2762.5,2762.4,9.00231]
[1740269441008,3.61933,2763.0,2762.4,9.00231]
[1740269441209,0.06340413,2762.5,2762.4,9.00231]
[1740269441410,3.61933,2763.0,2762.4,9.00231]
[1740269441606,0.06340413,2762.5,2762.4,9.00231]
[1740269441910,0.06340413,2762.5,2762.4,10.279618]
[1740269442106,3.61933,2763.0,2762.4,10.279618]
[1740269442409,0.06340413,2762.5,2762.4,9.00231]
[1740269442610,3.61933,2763.0,2762.4,9.00231]
[1740269443082,0.06378982,2762.9,2762.4,9.00231]
[1740269443281,3.68317982,2762.9,2762.4,5.3823]
[1740269444011,3.61979,2762.6,2762.4,5.3823]
[1740269444202,6.98968802,2762.5,2762.4,5.3823]
[1740269444390,7.05311032,2762.5,2762.4,5.3823]
[1740269444588,0.0634223,2762.5,2762.4,5.3823]
[1740269444912,6.98937802,2762.8,2762.4,5.3823]
[1740269445216,0.06101257,2762.5,2762.4,5.3823]
[1740269445379,6.98937802,2762.8,2762.4,5.3823]
[1740269445580,3.68091257,2762.5,2762.4,5.3823]
[1740269445803,3.6199,2762.5,2762.4,5.3823]
[1740269446013,7.05070059,2762.5,2762.4,5.3823]
[1740269446387,0.06101257,2762.5,2762.4,5.3823]
[1740269446729,3.61985,2762.6,2762.4,5.3823]
[1740269446887,0.06101257,2762.5,2762.4,5.3823]
[1740269447486,3.68091257,2762.5,2762.4,5.3823]
[1740269449322,7.05070059,2762.5,2762.4,5.3823]
[1740269449523,8.11774865,2762.5,2762.4,5.3823]
[1740269449692,3.62025,2762.3,2762.1,5.3823]
[1740269450216,0.06073686,2762.2,2762.1,5.3823]
[1740269450425,3.68103686,2762.2,2762.1,5.3823]
[1740269450611,3.6203,2762.2,2762.1,5.3823]
[1740269450799,3.68103686,2762.2,2762.1,5.3823]
[1740269451227,0.06073686,2762.2,2762.1,5.3823]
[1740269451524,3.62017,2762.3,2762.1,5.3823]
[1740269451820,0.06073686,2762.2,2762.1,5.3823]
[1740269452228,3.6203,2762.2,2762.1,5.3823]
[1740269452407,0.06047979,2762.2,2762.1,5.3823]
[1740269452726,7.24042,2762.3,2762.1,5.3823]
[1740269452913,0.06047979,2762.2,2762.1,5.3823]
[1740269453115,7.24042,2762.3,2762.1,5.3823]
[1740269453297,0.06047979,2762.2,2762.1,5.3823]
[1740269453489,3.62017,2762.3,2762.1,5.3823]
[1740269453690,0.06047979,2762.2,2762.1,5.3823]
[1740269454013,3.62017,2762.3,2762.1,5.3823]
[1740269454389,3.68077979,2762.2,2762.1,5.3823]
[1740269454924,0.06047979,2762.2,2762.1,5.3823]
[1740269455127,3.62017,2762.3,2762.1,5.3823]
[1740269455305,3.6203,2762.2,2762.1,5.3823]
[1740269455719,3.6203,2762.2,2762.0,0.1505]
[1740269455907,3.68077979,2762.2,2762.0,0.1505]
[1740269460242,7.30115979,2762.2,2762.0,0.1505]
[1740269460542,3.68077979,2762.2,2762.0,0.1505]
[1740269460920,3.62043,2762.1,2762.0,0.1505]
[1740269461121,1.57165493,2762.1,2761.7,5.3823]
[1740269461317,1.57165493,2762.1,2761.3,8.9]
[1740269461318,3.62095,2761.7,2761.6,0.261]
[1740269461604,3.62095,2761.7,2761.5,0.70760462]
[1740269461800,3.62095,2761.7,2761.4,0.4115]
[1740269461801,0.05786622,2761.7,2761.4,0.4115]
[1740269462239,6.99053802,2761.9,2761.4,4.0328]
[1740269462437,0.0577682,2761.6,2761.4,0.4115]
[1740269462647,3.62096,2761.7,2761.4,0.4115]
[1740269462933,3.62083,2761.8,2761.4,0.4115]
[1740269463144,0.0577682,2761.6,2761.4,0.4115]
[1740269463345,3.62096,2761.7,2761.4,0.4115]
[1740269463646,3.62096,2761.7,2761.5,0.27133248]
[1740269464137,0.0577682,2761.6,2761.5,0.27133248]
[1740269464635,3.62083,2761.8,2761.5,0.27133248]
[1740269464839,0.05751138,2761.6,2761.5,0.27133248]
[1740269465023,3.62083,2761.8,2761.5,0.27133248]
[1740269465231,0.05751138,2761.6,2761.5,0.27133248]
[1740269465413,3.62083,2761.8,2761.5,0.27133248]
[1740269465604,3.36978802,2761.9,2761.5,0.27133248]
[1740269465605,0.05688621,2761.6,2761.5,0.27133248]
[1740269465807,6.99048802,2761.9,2761.5,1.60212573]
[1740269466103,6.99048802,2761.9,2761.5,0.27133248]
[1740269466312,3.62102,2761.7,2761.5,0.27133248]
[1740269466664,3.62104,2761.7,2761.5,0.27133248]
[1740269467042,3.62094,2761.8,2761.4,0.27133248]
[1740269467554,3.62102,2761.7,2761.4,0.27133248]
[1740269467707,3.67787977,2761.7,2761.4,0.27133248]
[1740269468442,3.62112,2761.6,2761.4,0.27133248]
[1740269468821,0.05667586,2761.5,2761.4,0.27133248]
[1740269472242,4.39907,2761.7,2761.3,5.6423]
[1740269472749,0.05632044,2761.6,2761.3,5.6423]
[1740269473844,0.05632044,2761.6,2761.3,5.7928]
[1740269474038,0.05632044,2761.6,2761.3,10.42809715]
[1740269474424,7.76857802,2761.9,2761.3,10.42809715]
[1740269474608,0.05622847,2761.5,2761.3,10.42809715]
[1740269474941,7.76861802,2761.9,2761.4,0.2710832]
[1740269475650,3.67732438,2761.8,2761.4,0.2710832]
[1740269475944,0.05650438,2761.8,2761.4,0.2710832]
[1740269476252,0.05650438,2761.8,2761.7,3.77145]
[1740269476620,3.62063,2762.0,2761.7,5.3823]
[1740269476819,3.62056,2762.0,2761.7,5.3823]
[1740269477163,0.05663883,2761.9,2761.7,5.3823]
[1740269477450,3.67734883,2761.9,2761.7,5.3823]
[1740269477849,0.05663883,2761.9,2761.7,5.3823]
[1740269478013,0.05663883,2761.9,2761.7,4.30962]
[1740269478211,3.62031,2762.2,2761.7,0.68873]
[1740269478415,0.05658934,2761.8,2761.7,0.68873]
[1740269478615,3.62031,2762.2,2761.7,0.68873]
[1740269479051,3.62049,2762.1,2761.7,0.68873]
[1740269479251,3.67740983,2762.1,2761.7,0.68873]
[1740269479420,0.05691983,2762.1,2761.7,0.68873]
[1740269480453,0.05691983,2762.1,2761.6,0.27121639]
[1740269480653,4.4485,2761.9,2761.6,0.27121639]
[1740269480948,3.62095,2761.7,2761.6,0.27121639]
[1740269481153,6.99073802,2761.7,2761.6,0.27121639]
[1740269481351,6.99073802,2761.7,2761.5,5.3823]
[1740269481352,7.04729004,2761.7,2761.5,5.3823]
[1740269481649,3.62108,2761.6,2761.5,5.3823]
[1740269481958,3.67754005,2761.6,2761.2,5.6423]
[1740269482140,3.67754005,2761.6,2761.2,6.583767]
[1740269483646,3.67754005,2761.6,2761.3,0.27129377]
[1740269484325,0.05646005,2761.6,2761.3,0.27129377]
[1740269485069,3.62084,2761.8,2761.2,10.205317]
[1740269485266,4.44858,2761.9,2761.2,10.205317]
[1740269485267,0.05688098,2761.7,2761.3,3.62136]
[1740269485437,4.40622,2762.0,2761.5,0.1505]
[1740269485766,0.05706487,2761.9,2761.6,3.62104]
[1740269485969,0.05706487,2761.9,2761.5,0.1505]
[1740269486471,0.05706487,2761.9,2761.5,3.77171]
[1740269487972,0.05706487,2761.9,2761.5,0.1505]
[1740269488149,0.05706487,2761.9,2761.5,0.99187527]
[1740269489172,0.05706487,2761.9,2761.6,0.27152746]
[1740269490551,0.05706487,2761.9,2761.5,0.99187527]
[1740269490862,0.05706487,2761.9,2761.5,4.61307527]
[1740269491240,0.05706487,2761.9,2761.8,3.62082]
[1740269491466,0.05706487,2761.9,2761.8,5.033726]
[1740269491667,4.4235,2762.4,2761.8,5.033726]
[1740269491870,4.4235,2762.4,2761.8,10.416026]
[1740269492049,3.62019,2762.3,2761.8,10.68763349]
[1740269492252,3.67518694,2762.3,2761.8,10.68763349]
[1740269492780,3.67518694,2762.3,2761.9,1.06876335]
[1740269492982,3.67518694,2762.3,2762.0,0.26]
[1740269493278,3.67518694,2762.3,2762.0,0.53160749]
[1740269493483,0.05499694,2762.3,2762.0,0.53160749]
[1740269494179,4.42345,2762.4,2762.0,0.53160749]
[1740269494354,4.42345,2762.4,2762.0,0.26]
[1740269494554,0.05499694,2762.3,2762.0,0.26]
[1740269494765,3.67517694,2762.3,2762.0,0.26]
[1740269496475,0.05499694,2762.3,2762.0,0.26]
[1740269496642,0.05499694,2762.3,2762.0,1.30823133]
[1740269497181,0.05499694,2762.3,2762.0,2.0204683]
[1740269498063,0.05499694,2762.3,2762.0,5.6409483]
[1740269499068,0.05499694,2762.3,2762.0,2.0204683]
[1740269499775,0.05499694,2762.3,2762.0,5.91229175]
[1740269499944,3.6199,2762.5,2762.1,0.95329817]
[1740269500144,0.05498395,2762.2,2762.0,2.29177175]
[1740269500379,3.6199,2762.5,2762.0,2.29177175]
[1740269500579,0.05489203,2762.1,2762.0,2.29177175]
[1740269500777,3.36978802,2762.6,2762.0,6.06273175]
[1740269500970,0.05489203,2762.1,2762.0,6.06273175]
[1740269501185,7.80912802,2762.6,2762.0,9.68317175]
[1740269501654,0.05579586,2762.5,2762.0,9.68317175]
[1740269501859,3.67571586,2762.5,2762.1,4.58873717]
[1740269502060,3.67571586,2762.5,2762.1,0.96831717]
[1740269503188,3.67571586,2762.5,2762.1,6.35061717]
[1740269503694,0.05579586,2762.5,2762.1,6.35061717]
[1740269503849,3.62005,2762.4,2762.1,6.35061717]
[1740269504050,3.62018,2762.3,2762.1,6.35061717]
[1740269504283,3.6758406,2762.3,2762.1,6.35061717]
[1740269505586,3.6758406,2762.3,2762.1,5.3823]
[1740269506181,3.6203,2762.2,2762.1,5.3823]
[1740269506385,0.05556869,2762.2,2762.1,5.3823]
[1740269506587,3.62018,2762.3,2762.1,5.3823]
[1740269506781,0.05556869,2762.2,2762.1,5.3823]
[1740269506983,4.3717,2762.2,2762.1,5.3823]
[1740269507188,5.56343549,2762.2,2762.1,5.3823]
[1740269509189,3.621,2761.7,2761.3,0.259]
[1740269509690,3.67610706,2761.6,2761.3,0.259]
[1740269510200,3.67610706,2761.6,2761.3,0.53014495]
[1740269511170,3.67610706,2761.6,2761.3,0.27114495]
[1740269511756,3.62135,2761.4,2761.3,0.27114495]
[1740269511980,4.40115,2761.4,2761.3,0.27114495]
[1740269512179,4.45526689,2761.4,2761.3,0.27114495]
[1740269513699,3.62164,2761.2,2760.9,0.55]
[1740269513991,0.05384095,2761.1,2760.9,0.55]
[1740269514191,3.67558095,2761.1,2760.9,0.55]
[1740269514489,0.05384095,2761.1,2760.9,0.55]
[1740269516473,3.62187,2761.0,2760.9,0.55]
[1740269516794,0.05345141,2761.0,2760.9,0.55]
[1740269516971,7.24337,2761.2,2760.9,0.55]
[1740269517171,0.05345141,2761.0,2760.9,0.55]
[1740269517366,3.62176,2761.1,2760.9,0.55]
[1740269517579,0.05345141,2761.0,2760.9,0.55]
[1740269517895,3.67532141,2761.0,2760.9,0.55]
[1740269518682,5.55220635,2761.0,2760.9,0.55]
[1740269518995,5.55220635,2761.0,2760.7,0.155503]
[1740269518996,4.43233,2760.8,2760.7,0.155503]
[1740269519367,4.48523307,2760.8,2760.7,0.155503]
[1740269520290,4.48523307,2760.8,2759.1,0.005]
[1740269520291,0.8102,2759.9,2759.1,0.005]
[1740269520491,4.43562,2758.3,2758.2,0.02]
[1740269520692,7.85495705,2758.3,2758.2,0.02]
[1740269520900,0.85974903,2758.3,2758.2,0.02]
[1740269521199,0.04954903,2758.3,2758.2,0.02]
[1740269521490,0.8102,2758.9,2758.2,0.76230168]
[1740269521678,3.36978802,2759.4,2758.5,0.1555]
[1740269521879,3.36978802,2759.7,2759.0,3.62446]
[1740269522079,0.8102,2759.9,2759.1,0.271]
[1740269522300,0.8102,2759.9,2759.2,3.77971]
[1740269522500,3.62349,2759.8,2759.3,0.271]
[1740269522903,0.04788403,2759.7,2759.6,0.72191795]
[1740269523103,0.8102,2759.9,2759.6,0.72191795]
[1740269523432,0.0439426,2759.8,2759.6,0.72191795]
[1740269523713,3.62294,2760.2,2759.6,0.72191795]
[1740269523914,0.04379788,2759.7,2759.6,4.34561795]
[1740269524080,4.17998802,2760.3,2759.6,4.34561795]
[1740269524281,0.04093371,2760.2,2759.6,5.17037669]
[1740269524908,0.04093371,2760.2,2759.6,1.54667669]
[1740269525294,0.04093371,2760.2,2759.6,0.72191795]
[1740269526015,3.66395371,2760.2,2759.3,6.89506]
[1740269526486,3.62307,2760.1,2759.3,6.89506]
[1740269526682,0.03934058,2760.0,2759.4,3.62395]
[1740269527021,6.99268802,2760.3,2759.4,3.90253611]
[1740269527194,0.03924852,2759.9,2759.4,0.27858611]
[1740269527391,3.62308,2760.1,2759.4,0.27858611]
[1740269527590,0.03915646,2759.8,2759.4,0.27858611]
[1740269527790,6.99268802,2760.3,2759.4,4.63538772]
[1740269527791,6.99267802,2760.3,2759.4,4.63538772]
[1740269528001,3.36978802,2760.3,2759.6,3.62363]
[1740269528202,0.03952468,2760.2,2759.4,1.01150772]
[1740269528511,3.66245468,2760.2,2759.4,3.90244611]
[1740269528678,3.62374,2759.6,2758.8,5.5455]
[1740269528882,0.03888023,2759.5,2758.9,0.271]
[1740269530647,0.03888023,2759.5,2758.9,3.89562]
[1740269530991,0.03888023,2759.5,2758.9,1.038576]
[1740269531605,3.36978802,2759.7,2758.9,4.663106]
[1740269531838,0.03878814,2759.4,2759.1,3.62425]
[1740269532129,0.03869604,2759.3,2759.1,3.62425]
[1740269532310,12.23296802,2760.0,2759.0,3.89244557]
[1740269532311,3.62354,2759.8,2759.0,3.89244557]
[1740269532493,0.03906439,2759.7,2759.0,4.76355373]
[1740269534296,0.03906439,2759.7,2759.3,3.62398]
[1740269534497,8.60978802,2760.0,2759.4,3.62389]
[1740269534725,0.03578352,2759.9,2759.5,3.62375]
[1740269534928,0.03578352,2759.9,2759.3,3.6241]
[1740269535131,0.03578352,2759.9,2759.4,0.51791]
[1740269535300,0.03578352,2759.9,2759.4,4.14177]
[1740269535630,0.03578352,2759.9,2759.6,3.62361]
[1740269535934,0.03578352,2759.9,2759.5,3.62378]
[1740269536137,0.03578352,2759.9,2759.7,0.27]
[1740269538206,0.03578352,2759.9,2759.3,0.72467554]
[1740269538407,0.03578352,2759.9,2759.6,0.27]
[1740269538610,0.03578352,2759.9,2759.6,3.89366]
[1740269538834,0.03578352,2759.9,2759.6,0.27]
[1740269539209,3.36978802,2760.2,2759.6,3.8937]
[1740269539408,0.03440833,2759.8,2759.6,0.27]
[1740269539638,3.36978802,2760.2,2759.6,0.27]
[1740269539840,5.24,2760.3,2759.7,3.62351]
[1740269540156,5.24,2760.3,2759.8,3.62332]
[1740269540357,5.24,2760.3,2759.6,3.89362]
[1740269540560,5.24,2760.3,2759.7,3.62348]
[1740269540862,3.62294,2760.2,2759.7,0.73244199]
[1740269541143,8.86283,2760.3,2759.7,0.73244199]
[1740269543529,3.62292,2760.2,2759.7,0.73244199]
[1740269543833,6.99270802,2760.2,2759.7,0.73244199]
[1740269544059,3.36978802,2760.2,2759.7,1.01101698]
[1740269544262,3.62345,2759.8,2759.7,1.01101698]
[1740269544561,3.62345,2759.8,2759.7,0.73244199]
[1740269545344,3.36978802,2759.9,2759.7,0.73244199]
[1740269545506,6.99310802,2759.9,2759.7,0.73244199]
[1740269546442,5.24,2760.0,2759.7,0.73244199]
[1740269547005,5.24,2760.0,2759.8,3.62342]
[1740269547212,8.86321,2760.0,2759.7,0.73244199]
[1740269547706,3.62335,2759.9,2759.7,0.73244199]
[1740269548647,3.62345,2759.8,2759.7,0.73244199]
[1740269550551,7.81073802,2759.9,2759.7,0.73244199]
[1740269550929,4.18738802,2759.9,2759.7,0.73244199]
[1740269551546,5.24,2760.0,2759.7,0.73244199]
[1740269552848,5.24,2760.0,2759.7,0.18244199]
[1740269556541,7.81921802,2760.2,2759.7,0.18244199]
[1740269558374,3.36978802,2760.5,2759.8,0.1555]
[1740269558653,9.68873,2760.9,2760.2,3.62284]
[1740269559262,6.0667,2760.9,2760.0,0.1555]
[1740269559465,6.0667,2760.9,2760.0,3.77868]
[1740269559670,6.0667,2760.9,2760.4,3.62257]
[1740269559882,6.0667,2760.9,2760.4,3.62254]
[1740269560088,5.24,2760.9,2760.4,3.62266]
[1740269562551,12.23155802,2761.1,2760.4,3.62266]
[1740269562949,12.23155802,2761.1,2760.5,3.62252]
[1740269563397,12.23155802,2761.1,2760.4,3.62266]
[1740269563398,8.60978802,2761.1,2760.4,3.62266]
[1740269563542,3.36978802,2760.5,2759.6,5.5455]
[1740269563747,0.8267,2760.4,2759.8,3.62334]
[1740269564252,3.62286,2760.3,2759.7,3.271]
[1740269564448,3.62286,2760.3,2759.7,0.271]
[1740269564649,3.62286,2760.3,2759.7,3.0]
[1740269564975,3.62286,2760.3,2759.7,3.271]
[1740269565180,3.62325,2760.0,2759.7,0.27430794]
[1740269565475,3.6231,2760.1,2759.7,0.54530794]
[1740269567551,3.62292,2760.2,2759.7,0.54530794]
[1740269568871,8.86287,2760.3,2759.7,4.16875794]
[1740269569180,5.24,2760.3,2760.0,3.62308]
[1740269569877,5.24,2760.3,2760.2,3.62292]
[1740269571581,3.36978802,2762.1,2760.7,3.62225]
[1740269571582,4.40627,2761.2,2760.7,3.62225]
[1740269571990,0.7846,2761.2,2760.7,3.62225]
[1740269572193,0.7846,2761.2,2760.7,7.2445]
[1740269572353,0.7846,2761.2,2760.9,3.62189]
[1740269572983,3.62205,2760.9,2760.6,0.4255]
[1740269573187,6.99157802,2761.1,2760.6,0.27]
[1740269573497,3.62195,2761.0,2760.6,0.27]
[1740269573848,6.99157802,2761.1,2760.6,0.27]
[1740269573849,3.622,2760.9,2760.6,0.27]
[1740269574353,3.36978802,2761.1,2760.2,3.0]
[1740269574554,3.62241,2760.6,2760.3,0.27]
[1740269574790,3.62287,2760.3,2759.9,0.8904346]
[1740269574996,3.62261,2760.5,2760.1,0.27]
[1740269575182,7.24527,2760.5,2760.1,0.27]
[1740269575489,3.62261,2760.5,2760.1,0.27]
[1740269575888,3.62266,2760.4,2760.1,0.27]
[1740269576188,3.62261,2760.5,2759.9,0.4255]
[1740269576189,3.62279,2760.3,2759.9,0.4255]
[1740269576897,3.62261,2760.5,2760.0,3.62318]
[1740269577386,3.6227,2760.4,2759.9,3.4255]
[1740269577689,3.62261,2760.5,2759.9,7.04873]
[1740269578107,3.6226,2760.5,2760.0,3.62316]
[1740269579163,3.6226,2760.5,2759.9,7.0488]
[1740269579164,3.62271,2760.4,2759.9,7.0488]
[1740269580290,3.62271,2760.4,2759.9,7.04879]
[1740269580796,3.62271,2760.4,2759.9,7.32449988]
[1740269580999,3.62271,2760.4,2759.9,7.04879]
[1740269581193,3.62271,2760.4,2759.9,6.89329]
[1740269582999,3.62318,2760.0,2759.7,0.1555]
[1740269583295,3.62366,2759.7,2759.5,0.269]
[1740269583667,7.2468,2759.9,2759.5,0.269]
[1740269583985,3.62337,2759.9,2759.5,0.269]
[1740269584191,3.62345,2759.8,2759.5,0.269]
[1740269584393,3.62354,2759.8,2759.5,0.269]
[1740269584702,3.62362,2759.7,2759.5,0.269]
[1740269585204,3.62371,2759.6,2759.3,0.54582545]
[1740269585404,3.624,2759.4,2758.9,7.5575]
[1740269585599,3.6245,2759.1,2758.9,7.402]
[1740269586371,3.6245,2759.0,2758.9,7.402]
[1740269587808,4.44867,2759.1,2758.9,7.402]